[Event "Israel Open Championship 2023"]
[Site "Acre"]
[Date "2024.01.28"]
[Round "8.1"]
[White "Tzidkiya, Yeshaayahu"]
[Black "Rozen, Eytan"]
[Result "1/2-1/2"]
[ECO "B11"]
[WhiteElo "2448"]
[BlackElo "2462"]
[Annotator "RC"]
[PlyCount "26"]
[EventDate "2024.01.18"]
[EventType "swiss"]
[EventCountry "ISR"]
[SourceTitle "playchess.com"]
[Source "ChessBase"]
[SourceQuality "1"]
[TimeControl "5400+30"]

1. e4 {[%emt 1:31:00]} c6 {[%emt 0:04:14]} 2. Nc3 {[%emt 0:00:00]} d5 {[%emt 0:00:14]} 3. Nf3 {[%emt 0:00:00]} Bg4 {[%emt 0:01:04]} 4. Be2 {[%emt 0:00:00]} e6 {[%emt 0:00:48]} 5. O-O {[%emt 0:00:00]} Nd7 {[%emt 0:01:22]} 6. d4 {[%emt 0:00:00]} dxe4 {[%emt 0:00:06]} 7. Nxe4 {[%emt 0:00:00]} Ngf6 {[%emt 0:00:04]} 8. Nxf6+ {[%emt 0:00:00]} Nxf6 {[%emt 0:00:06]} 9. c4 {[%emt 0:00:00]} Bd6 {[%emt 0:02:56]} 10. Ne5 {[%emt 0:00:00]} Bxe2 {[%emt 0:01:34]} 11. Qxe2 {[%emt 0:00:00]} O-O {[%emt 0:00:41]} 12. Bg5 {[%emt 0:00:00]} Be7 {[%emt 0:00:50]} 13. Rfd1 {[%emt 0:00:00]} Nd7 {[%emt 1:23:01]} 1/2-1/2

[Event "Israel Open Championship 2023"]
[Site "Acre"]
[Date "2024.01.28"]
[Round "8.2"]
[White "Postny, Evgeny"]
[Black "Bronstein, Or"]
[Result "1/2-1/2"]
[ECO "D00"]
[WhiteElo "2597"]
[BlackElo "2441"]
[Annotator "RC"]
[PlyCount "158"]
[EventDate "2024.01.18"]
[EventType "swiss"]
[EventCountry "ISR"]
[SourceTitle "playchess.com"]
[Source "ChessBase"]
[SourceQuality "1"]
[TimeControl "5400+30"]

1. d4 {[%emt 0:00:04]} Nf6 {[%emt 0:06:04]} 2. Bg5 {[%emt 0:00:26]} d5 {[%emt 0:01:19]} 3. e3 {[%emt 0:00:13]} c5 {[%emt 0:00:18]} 4. Bxf6 {[%emt 0:00:13]} gxf6 {[%emt 0:00:11]} 5. Bb5+ {[%emt 0:00:23]} Nc6 {[%emt 0:05:02]} 6. dxc5 {[%emt 0:00:28]} Qa5+ {[%emt 0:13:33]} 7. Nc3 {[%emt 0:00:19]} a6 {[%emt 0:00:06]} 8. Bxc6+ {[%emt 0:02:51]} bxc6 {[%emt 0:00:02]} 9. Nge2 {[%emt 0:00:30]} Qxc5 {[%emt 0:10:32]} 10. O-O {[%emt 0:02:30]} Rb8 {[%emt 0:04:34]} 11. e4 {[%emt 0:16:34]} e6 {[%emt 0:04:29]} 12. Re1 {[%emt 0:03:06]} Be7 {[%emt 0:01:41]} 13. Qd3 {[%emt 0:09:09]} Qd6 {[%emt 0:05:46]} 14. b3 {[%emt 0:02:01]} O-O {[%emt 0:04:36]} 15. Rad1 {[%emt 0:05:59]} Kh8 {[%emt 0:02:15]} 16. Ng3 {[%emt 0:03:20]} Rg8 {[%emt 0:08:13]} 17. Qf3 {[%emt 0:12:22]} Bb7 {[%emt 0:00:58]} 18. Nce2 {[%emt 0:02:58]} Qe5 {[%emt 0:04:56]} 19. Nf4 {[%emt 0:07:33]} Qg5 {[%emt 0:01:57]} 20. c4 {[%emt 0:01:23]} Bb4 {[%emt 0:03:31]} 21. Rf1 {[%emt 0:09:29]} Bd6 {[%emt 0:02:54]} 22. Nfh5 {[%emt 0:06:44]} Rg6 {[%emt 0:01:02]} 23. Qe3 {[%emt 0:00:43]} Rh6 {[%emt 0:07:12]} 24. f4 {[%emt 0:07:51]} Qh4 {[%emt 0:00:46]} 25. e5 {[%emt 0:00:08]} Bc7 {[%emt 0:02:30]} 26. Nxf6 {[%emt 0:00:56]} d4 {[%emt 0:01:32]} 27. Rxd4 {[%emt 0:01:33]} Bb6 {[%emt 0:01:19]} 28. Rfd1 {[%emt 0:02:39]} Bxd4 {[%emt 0:00:59]} 29. Qxd4 {[%emt 0:00:17]} Qxh2+ {[%emt 0:02:26]} 30. Kf2 {[%emt 0:00:02]} Rg6 {[%emt 0:00:37]} 31. Qe3 {[%emt 0:02:26]} c5 {[%emt 0:00:10]} 32. Rh1 {[%emt 0:00:46]} Qxg2+ {[%emt 0:00:18]} 33. Ke1 {[%emt 0:00:02]} Rxf6 {[%emt 0:02:13]} 34. exf6 {[%emt 0:00:08]} Rd8 {[%emt 0:00:38]} 35. Rg1 {[%emt 0:00:37]} Qc2 {[%emt 0:02:22]} 36. Ne2 {[%emt 0:00:11]} Rd1+ {[%emt 0:00:32]} 37. Kf2 {[%emt 0:00:01]} Rd3 {[%emt 0:00:08]} 38. Rc1 {[%emt 0:00:18]} Rxe3 {[%emt 0:00:39]} 39. Rxc2 {[%emt 0:00:04]} Rf3+ {[%emt 0:00:04]} 40. Kg1 {[%emt 0:01:26]} h5 {[%emt 0:00:57]} 41. Rd2 {[%emt 0:00:00]} Be4 {[%emt 0:00:00]} 42. Rd7 {[%emt 0:00:00]} Kg8 {[%emt 0:00:00]} 43. Rc7 {[%emt 0:00:00]} Bd3 {[%emt 0:00:00]} 44. Nc3 {[%emt 0:00:00]} Rxf4 {[%emt 0:00:00]} 45. Rxc5 {[%emt 0:04:17]} Rf1+ {[%emt 0:00:00]} 46. Kh2 {[%emt 0:00:00]} Rc1 {[%emt 0:00:00]} 47. Rg5+ {[%emt 0:00:00]} Kh7 {[%emt 0:00:00]} 48. Na4 {[%emt 0:00:00]} h4 {[%emt 0:02:01]} 49. Nc5 {[%emt 0:00:00]} Bf5 {[%emt 0:01:39]} 50. Rg7+ {[%emt 0:00:00]} Kh6 {[%emt 0:00:01]} 51. Rxf7 {[%emt 0:00:00]} Rc2+ {[%emt 0:00:42]} 52. Kg1 {[%emt 0:00:00]} Kg6 {[%emt 0:01:05]} 53. Rg7+ {[%emt 0:00:00]} Kxf6 {[%emt 0:00:02]} 54. Rg2 {[%emt 0:00:00]} Rc1+ {[%emt 0:00:07]} 55. Kh2 {[%emt 0:00:00]} h3 {[%emt 0:01:28]} 56. Re2 {[%emt 0:01:07]} a5 {[%emt 0:00:49]} 57. Nd7+ {[%emt 0:01:11]} Kg5 {[%emt 0:00:24]} 58. Nc5 {[%emt 0:00:50]} Bg4 {[%emt 0:00:31]} 59. Rf2 {[%emt 0:01:16]} Bf5 {[%emt 0:00:56]} 60. Re2 {[%emt 0:00:15]} Bg4 {[%emt 0:00:26]} 61. Rf2 {[%emt 0:00:06]} Re1 {[%emt 0:00:23]} 62. Nd3 {[%emt 0:01:25]} Re3 {[%emt 0:00:05]} 63. Rd2 {[%emt 0:01:18]} Bf5 {[%emt 0:00:25]} 64. Nf2 {[%emt 0:00:26]} Kf4 {[%emt 0:00:49]} 65. Nd1 {[%emt 0:00:50]} Re1 {[%emt 0:00:14]} 66. Nf2 {[%emt 0:00:56]} Ke3 {[%emt 0:02:02]} 67. Rb2 {[%emt 0:00:02]} Rb1 {[%emt 0:00:00]} 68. Rxb1 {[%emt 0:00:37]} Bxb1 {[%emt 0:00:00]} 69. Ng4+ {[%emt 0:01:01]} Kd4 {[%emt 0:00:00]} 70. a3 {[%emt 0:00:17]} Bf5 {[%emt 0:00:15]} 71. Nh6 {[%emt 0:00:23]} Bc2 {[%emt 0:01:10]} 72. b4 {[%emt 0:00:05]} axb4 {[%emt 0:00:53]} 73. axb4 {[%emt 0:00:03]} Kxc4 {[%emt 0:00:10]} 74. Kxh3 {[%emt 0:00:16]} Kxb4 {[%emt 0:00:15]} 75. Kg3 {[%emt 0:00:21]} Kc3 {[%emt 0:00:08]} 76. Kf4 {[%emt 0:00:11]} Kd4 {[%emt 0:00:01]} 77. Ng4 {[%emt 0:00:07]} Bb3 {[%emt 0:00:31]} 78. Ne5 {[%emt 0:00:06]} Bd5 {[%emt 0:00:12]} 79. Ng4 {[%emt 0:00:06]} Bc6 {[%emt 0:00:47]} 1/2-1/2

[Event "Israel Open Championship 2023"]
[Site "Acre"]
[Date "2024.01.28"]
[Round "8.3"]
[White "Smirin, Ilia"]
[Black "Levin, Guy"]
[Result "1-0"]
[ECO "B15"]
[WhiteElo "2582"]
[BlackElo "2435"]
[Annotator "TA"]
[PlyCount "99"]
[EventDate "2024.01.18"]
[EventType "swiss"]
[EventCountry "ISR"]
[SourceTitle "playchess.com"]
[Source "ChessBase"]
[SourceQuality "1"]
[TimeControl "5400+30"]

{[%evp 22,99,23,22,14,18,51,25,38,13,10,20,17,0,8,0,0,-13,0,0,0,28,67,72,141,41,49,41,43,0,0,0,111,97,91,0,207,225,347,320,360,339,523,612,413,335,297,183,220,221,297,288,371,291,295,304,653,646,875,790,1129,1116,1362,1439,1452,1425,2203,9081,2042,5372,29981,29982,29982,29983,29983,29984,29988,29989,29989,29990]} 1. e4 {[%emt 0:09:48]} c6 {[%emt 0:00:09]} 2. d4 {[%emt 0:00:05]} d5 {[%emt 0:00:04]} 3. Nd2 {[%emt 0:00:04]} dxe4 {[%emt 0:00:08]} 4. Nxe4 {[%emt 0:00:04]} Nf6 {[%emt 0:00:09]} 5. Nxf6+ {[%emt 0:00:18]} exf6 {[%emt 0:00:07]} 6. c3 {[%emt 0:00:21]} Bd6 {[%emt 0:00:12]} 7. Bd3 {[%emt 0:00:07]} O-O {[%emt 0:02:17]} 8. Qc2 {[%emt 0:00:38]} Re8+ {[%emt 0:00:06] B15: Caro-Kann: 3 Nc3: 3...g6 and 3...dxe4 4 Nxe4 Nf6 5 Nxf6+ exf6.} 9. Ne2 {[%emt 0:00:05]} h5 {[%emt 0:00:10]} 10. Be3 {[%emt 0:02:11]} Nd7 {[%emt 0:00:47]} 11. O-O-O {[%emt 0:00:44]} Nf8 {[%emt 0:00:24] 11...b5 is the fancy move.} 12. Kb1 {[%emt 0:02:24]} Be6 {[%emt 0:01:58]} 13. c4 {[%emt 0:02:00]} Qa5 {[%emt 0:08:04]} 14. Bd2 {[%emt 0:13:16]} Bb4 {[%emt 0:03:06]} 15. Nc3 {[%emt 0:02:39]} Rad8 $146 {[%emt 0:24:04]} (15... b5 {is more complex.} 16. d5 bxc4 17. dxe6 cxd3 18. exf7+ Kxf7 19. Qxd3 Red8) ({Predecessor:} 15... b5 16. a3 bxc4 17. axb4 cxd3 18. bxa5 dxc2+ 19. Kxc2 Rab8 20. Rde1 Red8 21. Be3 Bf5+ {1-0 Zwahr,P (2278)-Mueller,M (2124) GER-ch Net blitz qual4 2020 (2)}) 16. a3 {[%emt 0:01:00]} Bxc3 {[%emt 0:02:14]} 17. Bxc3 {[%emt 0:00:29]} Qc7 {[%emt 0:08:29]} 18. h3 {[%emt 0:07:39]} a6 {[%emt 0:04:22]} 19. Qd2 {[%emt 0:15:41]} Qb8 {[%emt 0:05:39]} 20. g4 {[%emt 0:01:35]} b5 {[%emt 0:07:29]} 21. cxb5 {[%emt 0:03:01]} cxb5 {[%emt 0:05:13]} 22. gxh5 {[%emt 0:00:17]} Qb7 {[%emt 0:07:58] [#]} (22... Rd5 $142) 23. Rhg1 {[%emt 0:00:33]} (23. Qf4 $1 $16 Qd5 24. Rdg1) 23... Qf3 $14 {[%emt 0:00:21]} 24. h6 {[%emt 0:19:09]} g6 $1 {[%emt 0:00:20]} 25. Rg3 {[%emt 0:00:07]} Qh5 $1 {[%emt 0:03:07]} 26. Re1 {[%emt 0:02:16]} Bf5 {[%emt 0:05:21]} (26... Bd5 $1 $11 {remains equal.}) 27. Rxe8 $16 {[%emt 0:01:53]} Rxe8 {[%emt 0:00:01] [#]} 28. d5 {[%emt 0:00:11]} (28. Bxf5 $1 $16 Qxf5+ 29. Qd3 Qxd3+ 30. Rxd3) 28... Re2 $2 {[%emt 0:00:58]} (28... Rd8 $1 $11) 29. Qf4 $18 {[%emt 0:00:48]} Bxd3+ {[%emt 0:10:54]} (29... Re5 $142) 30. Rxd3 $18 {[%emt 0:00:05]} Nd7 {[%emt 0:00:04]} 31. Bxf6 {[%emt 0:02:00]} Nxf6 {[%emt 0:01:13]} (31... Re1+ $142 32. Ka2 Rd1 33. Rxd1 Qxd1) 32. Qxf6 $18 {[%emt 0:00:06]} Qxh6 {[%emt 0:00:21]} 33. Rc3 {[%emt 0:04:26]} (33. Qxa6 Re1+ 34. Ka2 Qc1 35. Qxb5 Qb1+ 36. Kb3 Re2 $18) 33... Re8 {[%emt 0:00:19]} 34. Rc7 {[%emt 0:02:53]} Rf8 {[%emt 0:00:02]} 35. Qxa6 {[%emt 0:00:56]} b4 {[%emt 0:01:17]} 36. Rc8 {[%emt 0:01:57]} (36. axb4 Qf4 37. Qb7 Qxf2 $11) 36... Qxh3 {[%emt 0:00:30]} 37. Rxf8+ {[%emt 0:00:04]} Kxf8 {[%emt 0:00:01]} 38. Qd6+ {[%emt 0:00:53]} (38. axb4 Qf5+ 39. Ka1 Qxd5 $16) 38... Kg8 $2 {[%emt 0:00:48]} (38... Kg7 39. axb4 (39. Qxb4 Qh1+ 40. Ka2 Qxd5+ 41. Qb3 Qd8 $11) (39. Qe5+ Kg8 $16) 39... Qd3+ 40. Ka2 g5) 39. axb4 $18 {[%emt 0:07:17]} ({Weaker is} 39. Qb8+ Kh7 $18) 39... Qd3+ {[%emt 0:00:43]} 40. Ka2 {[%emt 0:00:00]} Qc4+ {[%emt 0:00:22]} 41. Ka3 {[%emt 0:00:00]} Qd3+ {[%emt 0:00:06]} 42. Ka4 {[%emt 0:00:00]} Qc2+ {[%emt 0:00:09]} 43. Ka5 {[%emt 0:00:00]} Qxf2 {[%emt 0:00:10]} 44. Qc5 {[%emt 0:00:00]} Qd2 {[%emt 0:00:00]} 45. d6 {[%emt 0:00:00]} (45. Kb6 $142 f6 46. d6) 45... g5 {[%emt 0:00:00]} 46. Qc8+ {[%emt 0:00:00]} Kh7 {[%emt 0:00:00]} 47. d7 {[%emt 0:00:00]} Qd5+ {[%emt 0:00:00]} 48. b5 {[%emt 0:00:00]} Qd2+ {[%emt 0:00:00]} 49. Ka6 {[%emt 0:00:00]} Qd6+ {[%emt 0:00:00]} 50. b6 {[%emt 0:00:00]} 1-0

[Event "Israel Open Championship 2023"]
[Site "Acre"]
[Date "2024.01.28"]
[Round "8.4"]
[White "Parkhov, Yair"]
[Black "Mikhalevski, Victor"]
[Result "1/2-1/2"]
[ECO "D87"]
[WhiteElo "2495"]
[BlackElo "2524"]
[Annotator "TA"]
[PlyCount "87"]
[EventDate "2024.01.18"]
[EventType "swiss"]
[EventCountry "ISR"]
[SourceTitle "playchess.com"]
[Source "ChessBase"]
[SourceQuality "1"]
[TimeControl "5400+30"]

{[%evp 19,87,20,26,11,18,0,0,4,8,0,12,-3,0,0,0,0,0,-17,0,0,-6,-11,-20,-4,-11,-30,-22,-65,-27,-42,-36,-81,-40,-47,-10,-10,0,0,0,0,0,0,0,0,0,0,0,0,0,0,0,0,0,0,0,0,0,0,0,0,0,0,0,0,0,0,0,0,0,0]} 1. d4 {[%emt 0:00:04]} Nf6 {[%emt 0:03:14]} 2. c4 {[%emt 0:00:04]} g6 {[%emt 0:00:13]} 3. Nc3 {[%emt 0:00:11]} d5 {[%emt 0:00:13]} 4. cxd5 {[%emt 0:00:08]} Nxd5 {[%emt 0:00:05]} 5. e4 {[%emt 0:00:11]} Nxc3 {[%emt 0:00:05]} 6. bxc3 {[%emt 0:00:04]} Bg7 {[%emt 0:00:06]} 7. Bc4 {[%emt 0:00:09]} c5 {[%emt 0:00:09]} 8. Ne2 {[%emt 0:00:04]} O-O {[%emt 0:00:13]} 9. O-O {[%emt 0:00:07]} Nc6 {[%emt 0:00:03]} 10. Be3 {[%emt 0:00:03]} b6 {[%emt 0:00:09]} 11. Rc1 {[%emt 0:02:39]} Bb7 {[%emt 0:01:27][%cal Bc8b7,Bb7c6,Bc6d7,Bd7f5][%mdl 32]} 12. Bb5 {[%emt 0:02:51]} Rc8 {[%emt 0:02:22]} 13. Bxc6 {[%emt 0:08:49]} Bxc6 {[%emt 0:08:17]} 14. d5 {[%emt 0:00:07]} Bd7 {[%emt 0:00:14]} 15. c4 {[%emt 0:06:01]} f5 {[%emt 0:03:00]} 16. exf5 {[%emt 0:13:21]} Bxf5 {[%emt 0:00:58]} 17. Qd2 {[%emt 0:00:13]} e6 {[%emt 0:28:51]} 18. Nc3 {[%emt 0:05:13]} exd5 {[%emt 0:04:27]} 19. Nxd5 {[%emt 0:01:05]} Qd7 {[%emt 0:00:32]} 20. Bh6 {[%emt 0:16:16]} Bxh6 {[%emt 0:09:30]} 21. Qxh6 {[%emt 0:00:06]} Be6 {[%emt 0:00:06]} 22. Ne3 {[%emt 0:09:30]} Rcd8 {[%emt 0:04:51]} 23. h4 {[%emt 0:08:23][%cal Oa2a4]} Qg7 {[%emt 0:03:42]} 24. Qxg7+ {[%emt 0:00:10]} Kxg7 {[%emt 0:00:05]} 25. Rc2 {[%emt 0:01:40] Prevents Rd2.} Rd4 {[%emt 0:06:14]} 26. g3 {[%emt 0:00:22]} Bd7 {[%emt 0:00:09]} 27. a4 $1 {[%emt 0:02:26] The position is equal.} Rf7 {[%emt 0:05:34]} 28. Ra1 {[%emt 0:02:46]} Bc6 {[%emt 0:03:39]} 29. a5 {[%emt 0:02:12]} Bf3 {[%emt 0:01:21]} 30. axb6 {[%emt 0:00:42]} axb6 {[%emt 0:00:01]} 31. Rb2 {[%emt 0:02:05]} Rd6 {[%emt 0:00:28]} 32. Rab1 {[%emt 0:04:33]} Rff6 {[%emt 0:03:46]} 33. Ra1 {[%emt 0:04:44]} h6 {[%emt 0:02:19]} 34. Ra7+ {[%emt 0:02:43]} Rf7 {[%emt 0:00:08]} 35. Ra6 {[%emt 0:01:15]} Rff6 {[%emt 0:00:43]} 36. Ra7+ {[%emt 0:00:38]} Rf7 {[%emt 0:02:43]} 37. Ra6 {[%emt 0:02:19]} Rff6 {[%emt 0:00:06]} 38. Kh2 {[%emt 0:00:14]} h5 {[%emt 0:00:30]} 39. Ra7+ {[%emt 0:00:46]} Rf7 {[%emt 0:04:56]} 40. Ra6 {[%emt 0:00:07]} Bb7 {[%emt 0:03:41]} 41. Ra3 {[%emt 0:05:39]} Be4 {[%emt 0:01:50]} 42. Ra6 {[%emt 0:00:00]} Bb7 {[%emt 0:00:00]} 43. Ra3 {[%emt 0:01:00]} Be4 {[%emt 0:00:00]} 44. Ra6 {[%emt 0:00:00] Weighted Error Value: White=0.06 (flawless) /Black=0.05 (flawless) .  Inaccurate:     	White=2     	Black=3      OK:         	White=14    	Black=13     Strong:       	White=1     	---} 1/2-1/2

[Event "Israel Open Championship 2023"]
[Site "Acre"]
[Date "2024.01.28"]
[Round "8.5"]
[White "Kochavi, Ori"]
[Black "Alekseev, Evgeny"]
[Result "0-1"]
[ECO "B90"]
[WhiteElo "2428"]
[BlackElo "2563"]
[Annotator "TA"]
[PlyCount "106"]
[EventDate "2024.01.18"]
[EventType "swiss"]
[EventCountry "ISR"]
[SourceTitle "playchess.com"]
[Source "ChessBase"]
[SourceQuality "1"]
[TimeControl "5400+30"]

{[%evp 39,106,-29,-22,-25,-27,-60,-53,-62,-36,-54,-25,-25,-25,-25,0,-68,-55,-87,-10,-18,-14,-88,-87,-104,-99,-107,-75,-111,-105,-129,-130,-252,-242,-458,-468,-444,-397,-388,-408,-487,-474,-518,-512,-592,-596,-635,-396,-372,-382,-370,-403,-390,-376,-680,-682,-701,-696,-1937,-1800,-1648,-3925,-12794,-11226,-12811,-10478,-6673,-6279,-5206,-2811]} 1. e4 {[%emt 0:00:44]} c5 {[%emt 0:00:32]} 2. Nf3 {[%emt 0:00:04]} d6 {[%emt 0:00:52]} 3. d4 {[%emt 0:02:18]} cxd4 {[%emt 0:01:22]} 4. Nxd4 {[%emt 0:00:03]} Nf6 {[%emt 0:00:38]} 5. Nc3 {[%emt 0:00:06]} a6 {[%emt 0:00:21]} 6. Nf3 {[%emt 0:07:17]} Nc6 {[%emt 0:11:09] B90: Sicilian Najdorf: Unusual White 6th moves, 6 Be3 Ng4 and 6 Be3 e5.} 7. a4 {[%emt 0:11:34]} e6 {[%emt 0:07:46]} 8. Bd3 {[%emt 0:01:58]} Be7 {[%emt 0:03:24]} 9. O-O {[%emt 0:00:03]} O-O {[%emt 0:00:30]} 10. h3 {[%emt 0:00:52]} b6 {[%emt 0:01:38]} 11. Qe2 $146 {[%emt 0:01:20]} ({Predecessor:} 11. Be3 Nb4 12. Qe2 Bb7 13. Nd4 Rc8 14. Rad1 Qc7 15. f4 Rfe8 16. Qf2 Qd8 17. Qg3 {½-½ Rodriguez Perez,R (2056)-Farnik,K (2152) FICGS class A 000203 email 2019 (1)}) 11... Bb7 {[%emt 0:03:28]} 12. Bf4 {[%emt 0:09:47]} Nd7 {[%emt 0:04:53]} 13. Rfd1 {[%emt 0:05:22]} Qc7 {[%emt 0:01:04]} 14. Qe1 {[%emt 0:13:07]} Rfd8 {[%emt 0:03:24]} 15. Bf1 {[%emt 0:05:44]} Nde5 {[%emt 0:16:28]} 16. Nd2 {[%emt 0:00:03]} Na5 {[%emt 0:07:46]} 17. Be3 {[%emt 0:02:25]} Bf6 {[%emt 0:03:56]} 18. f4 {[%emt 0:08:05]} Nd7 {[%emt 0:00:25]} 19. Ra3 {[%emt 0:02:51]} Nc6 {[%emt 0:07:17]} 20. Qf2 {[%emt 0:01:23]} Rac8 {[%emt 0:05:14]} 21. Raa1 {[%emt 0:10:10]} Nc5 {[%emt 0:07:05]} 22. Rab1 {[%emt 0:03:03]} Nb4 {[%emt 0:07:14]} 23. Nc4 {[%emt 0:03:08]} Be7 {[%emt 0:03:45]} 24. Bd4 {[%emt 0:06:23]} Rb8 {[%emt 0:00:34]} 25. e5 {[%emt 0:01:33]} d5 $1 {[%emt 0:00:55]} 26. Nd6 $1 {[%emt 0:00:03]} Nc6 {[%emt 0:00:59]} 27. b4 {[%emt 0:02:14]} (27. Be3 $11) 27... Nxd4 $15 {[%emt 0:00:13]} 28. Qxd4 {[%emt 0:00:09] [#]} Nd7 {[%emt 0:00:46]} (28... Rxd6 $1 $17 29. exd6 Bxd6) 29. Nxb7 $1 $11 {[%emt 0:01:19]} Qxb7 {[%emt 0:00:03]} 30. Bd3 {[%emt 0:00:41] [#]} (30. Kh1 $11) 30... a5 $1 $17 {[%emt 0:00:31]} 31. Nb5 {[%emt 0:00:55]} (31. bxa5 $2 Bc5 32. Ne2 Bxd4+ $19) 31... Bxb4 {[%emt 0:00:51]} 32. Kh1 {[%emt 0:01:06]} g6 {[%emt 0:00:33]} 33. Qf2 {[%emt 0:00:37]} Be7 {[%emt 0:00:30]} 34. Rf1 {[%emt 0:00:16]} Nc5 {[%emt 0:00:09]} 35. f5 {[%emt 0:00:25]} (35. Ra1 $17) 35... exf5 $19 {[%emt 0:01:07]} (35... gxf5 36. Rbe1 $17) 36. Bxf5 $2 {[%emt 0:00:17]} (36. Qg3 {was worth a try.}) 36... gxf5 $19 {[%emt 0:00:12]} 37. Qxf5 {[%emt 0:00:04]} Rf8 {[%emt 0:00:19]} (37... Nxa4 38. Qg4+ (38. Qxf7+ $2 Kh8 $17) 38... Kh8 39. Rxf7 $18 (39. Qxa4 d4 $11)) 38. Nd6 {[%emt 0:00:48]} Qd7 {[%emt 0:00:11]} 39. Qh5 {[%emt 0:00:08]} Qe6 {[%emt 0:00:43]} (39... Nxa4 $2 40. Rxf7 Rxf7 41. Qxf7+ Kh8 42. Nf5 $18 (42. Qxd5 $2 Nc5 $19) (42. Qxd5 $2 Nc5 $19)) (39... Qxa4 40. Nf5 Bd8 41. e6 $11) 40. Nf5 {[%emt 0:00:08]} Kh8 {[%emt 0:00:26]} (40... Qxe5 $2 {loses.} 41. Nh6+ Kh8 42. Nxf7+ (42. Qxe5+ f6 $18) 42... Rxf7 43. Qxe5+ $18) 41. c4 {[%emt 0:00:00]} dxc4 {[%emt 0:00:00]} 42. Rf3 {[%emt 0:00:00]} Qg6 {[%emt 0:00:00]} (42... Qxe5 $2 43. Re3 Qf4 (43... Ne4 $2 44. Qf3 $19) 44. Rxe7 $19) 43. Qxg6 {[%emt 0:00:00]} fxg6 {[%emt 0:00:00]} 44. Nxe7 {[%emt 0:00:00]} Rxf3 {[%emt 0:00:00]} ({Resist} 44... Nxa4 45. Ra3 Nc5 46. Nc6 $19) 45. gxf3 {[%emt 0:00:00]} Nxa4 {[%emt 0:00:00]} 46. Rd1 $2 {[%emt 0:00:00]} (46. Kg2) 46... c3 $19 {[%emt 0:00:00]} 47. Nc6 {[%emt 0:00:00]} Rc8 {[%emt 0:00:00]} 48. e6 {[%emt 0:00:00]} Rxc6 {[%emt 0:00:00]} 49. e7 {[%emt 0:00:00]} Re6 {[%emt 0:00:00]} 50. Rd8+ {[%emt 0:00:00]} Kg7 {[%emt 0:00:00]} 51. e8=Q {[%emt 0:00:00]} Rxe8 {[%emt 0:00:00]} 52. Rxe8 {[%emt 0:00:00]} b5 {[%emt 0:00:00]} 53. Kg2 {[%emt 0:00:00]} b4 {[%emt 0:00:00]} 0-1